[Event "Charlotte Spring IM-B 2024"]
[Site "Charlotte"]
[Date "2024.03.30"]
[Round "6.5"]
[White "Tang, Benjamin"]
[Black "Jiang, Andrew"]
[Result "1-0"]
[ECO "C45"]
[WhiteElo "2324"]
[BlackElo "2181"]
[Annotator "RC"]
[PlyCount "57"]
[EventDate "2024.03.27"]
[EventType "tourn"]
[EventCountry "USA"]
[SourceTitle "playchess.com"]
[Source "ChessBase"]
[SourceQuality "1"]
[TimeControl "5400+30"]

1. e4 {[%emt 0:06:39]} e5 {[%emt 0:00:18]} 2. Nf3 {[%emt 0:00:28]} Nc6 {[%emt 0:00:12]} 3. d4 {[%emt 0:00:05]} exd4 {[%emt 0:00:11]} 4. Nxd4 {[%emt 0:00:04]} Bc5 {[%emt 0:00:11]} 5. Nb3 {[%emt 0:00:05]} Bb6 {[%emt 0:00:10]} 6. Qe2 {[%emt 0:00:06]} Nf6 {[%emt 0:00:16]} 7. e5 {[%emt 0:00:07]} Nd5 {[%emt 0:03:21]} 8. c4 {[%emt 0:00:44]} Nde7 {[%emt 0:00:15]} 9. c5 {[%emt 0:01:04]} Ba5+ {[%emt 0:00:09]} 10. Nxa5 {[%emt 0:00:04]} Nxa5 {[%emt 0:00:08]} 11. Nc3 {[%emt 0:00:46]} O-O {[%emt 0:07:35]} 12. Bg5 {[%emt 0:01:26]} h6 {[%emt 0:05:53]} 13. Bh4 {[%emt 0:00:21]} Qe8 {[%emt 0:01:46]} 14. O-O-O {[%emt 0:10:01]} Nf5 {[%emt 0:02:10]} 15. Bg3 {[%emt 0:01:02]} Nc6 {[%emt 0:00:51]} 16. Bf4 {[%emt 0:17:24]} Qe7 {[%emt 0:18:38]} 17. Qe4 {[%emt 0:15:07]} Nh4 {[%emt 0:01:12]} 18. b4 {[%emt 0:00:21]} f5 {[%emt 0:14:30]} 19. Qc4+ {[%emt 0:06:08]} Kh8 {[%emt 0:00:08]} 20. Nd5 {[%emt 0:00:19]} Qd8 {[%emt 0:00:01]} 21. e6 {[%emt 0:02:18]} b5 {[%emt 0:00:43]} 22. Qxb5 {[%emt 0:04:23]} Ng6 {[%emt 0:01:22]} 23. Bxc7 {[%emt 0:01:14]} Qh4 {[%emt 0:00:22]} 24. Bd6 {[%emt 0:04:06]} Rg8 {[%emt 0:00:56]} 25. Qc4 {[%emt 0:06:26]} Qxc4+ {[%emt 0:03:00]} 26. Bxc4 {[%emt 0:00:04]} dxe6 {[%emt 0:00:06]} 27. Nc7 {[%emt 0:00:24]} Rb8 {[%emt 0:00:01]} 28. a3 {[%emt 0:00:35]} a5 {[%emt 0:00:15]} 29. Nxe6 {[%emt 0:04:33]} 1-0

[Event "Charlotte Spring IM-B 2024"]
[Site "Charlotte"]
[Date "2024.03.30"]
[Round "7.1"]
[White "Jiang, Andrew"]
[Black "Diaz Charpentier, Kristel Meliss"]
[Result "1-0"]
[ECO "B22"]
[WhiteElo "2181"]
[BlackElo "1990"]
[Annotator "RC"]
[PlyCount "57"]
[EventDate "2024.03.27"]
[EventType "tourn"]
[EventCountry "USA"]
[SourceTitle "playchess.com"]
[Source "ChessBase"]
[SourceQuality "1"]
[TimeControl "5400+30"]

1. e4 {[%emt 0:00:11]} c5 {[%emt 0:00:16]} 2. c3 {[%emt 0:00:19]} d5 {[%emt 0:00:07]} 3. exd5 {[%emt 0:00:11]} Qxd5 {[%emt 0:00:07]} 4. d4 {[%emt 0:00:11]} Nf6 {[%emt 0:00:07]} 5. Nf3 {[%emt 0:00:10]} Bg4 {[%emt 0:00:23]} 6. dxc5 {[%emt 0:00:09]} Qxd1+ {[%emt 0:03:40]} 7. Kxd1 {[%emt 0:00:05]} Bxf3+ {[%emt 0:00:07]} 8. gxf3 {[%emt 0:00:13]} e6 {[%emt 0:00:20]} 9. b4 {[%emt 0:00:51]} a5 {[%emt 0:01:44]} 10. a3 {[%emt 0:01:26]} Nc6 {[%emt 0:00:56]} 11. Bb2 {[%emt 0:02:35]} O-O-O+ {[%emt 0:01:37]} 12. Kc2 {[%emt 0:00:27]} Ne5 {[%emt 0:08:29]} 13. Nd2 {[%emt 0:01:16]} Nh5 {[%emt 0:02:00]} 14. Nb3 {[%emt 0:09:28]} Nf4 {[%emt 0:07:36]} 15. Nxa5 {[%emt 0:01:06]} Nxf3 {[%emt 0:02:39]} 16. Nc4 {[%emt 0:00:25]} Be7 {[%emt 0:03:56]} 17. a4 {[%emt 0:01:40]} Bh4 {[%emt 0:24:36]} 18. Nd6+ {[%emt 0:02:51]} Kc7 {[%emt 0:03:18]} 19. Bc1 {[%emt 0:00:56]} g5 {[%emt 0:07:58]} 20. Nxf7 {[%emt 0:00:55]} Rhf8 {[%emt 0:00:23]} 21. Nxd8 {[%emt 0:00:16]} Rxd8 {[%emt 0:00:03]} 22. Bxf4+ {[%emt 0:00:54]} gxf4 {[%emt 0:00:10]} 23. Rd1 {[%emt 0:00:22]} Rg8 {[%emt 0:00:42]} 24. Be2 {[%emt 0:02:18]} Rg2 {[%emt 0:00:56]} 25. Bxf3 {[%emt 0:00:48]} Rxf2+ {[%emt 0:00:06]} 26. Kb3 {[%emt 0:00:22]} Rxf3 {[%emt 0:00:05]} 27. Rhf1 {[%emt 0:00:09]} Rxf1 {[%emt 0:00:49]} 28. Rxf1 {[%emt 0:00:02]} e5 {[%emt 0:00:08]} 29. Kc4 {[%emt 0:00:08]} 1-0

[Event "Charlotte Spring IM-B 2024"]
[Site "Charlotte"]
[Date "2024.03.31"]
[Round "7.2"]
[White "Chirilov, James A"]
[Black "Tang, Benjamin"]
[Result "1-0"]
[ECO "C10"]
[WhiteElo "2082"]
[BlackElo "2324"]
[Annotator "RC"]
[PlyCount "117"]
[EventDate "2024.03.27"]
[EventType "tourn"]
[EventCountry "USA"]
[SourceTitle "playchess.com"]
[Source "ChessBase"]
[SourceQuality "1"]
[TimeControl "5400+30"]

1. e4 {[%emt 0:00:02]} e6 {[%emt 0:02:17]} 2. d4 {[%emt 0:00:33]} d5 {[%emt 0:00:05]} 3. Nc3 {[%emt 0:00:06]} Nf6 {[%emt 0:00:04]} 4. Bg5 {[%emt 0:00:22]} dxe4 {[%emt 0:00:05]} 5. Nxe4 {[%emt 0:00:10]} Nbd7 {[%emt 0:00:03]} 6. Nf3 {[%emt 0:01:27]} h6 {[%emt 0:00:08]} 7. Nxf6+ {[%emt 0:00:09]} Nxf6 {[%emt 0:00:06]} 8. Be3 {[%emt 0:00:11]} Bd6 {[%emt 0:00:36]} 9. Bd3 {[%emt 0:02:01]} O-O {[%emt 0:00:15]} 10. Qe2 {[%emt 0:03:39]} b6 {[%emt 0:00:45]} 11. O-O-O {[%emt 0:02:37]} Bb7 {[%emt 0:00:09]} 12. Rhg1 {[%emt 0:02:16]} Nd5 {[%emt 0:01:06]} 13. g4 {[%emt 0:07:52]} Nf4 {[%emt 0:13:39]} 14. Bxf4 {[%emt 0:00:52]} Bxf4+ {[%emt 0:00:03]} 15. Kb1 {[%emt 0:00:10]} Qd5 {[%emt 0:04:34]} 16. Ne5 {[%emt 0:01:40]} Bxh2 {[%emt 0:02:35]} 17. g5 {[%emt 0:15:15]} Bxg1 {[%emt 0:09:38]} 18. Rxg1 {[%emt 0:02:03]} Qxd4 {[%emt 0:09:57]} 19. gxh6 {[%emt 0:03:08]} g6 {[%emt 0:00:04]} 20. Nxg6 {[%emt 0:27:07]} fxg6 {[%emt 0:06:37]} 21. Qxe6+ {[%emt 0:00:17]} Kh8 {[%emt 0:00:18]} 22. Qxg6 {[%emt 0:00:16]} Qd7 {[%emt 0:00:13]} 23. Qg7+ {[%emt 0:00:11]} Qxg7 {[%emt 0:00:07]} 24. hxg7+ {[%emt 0:00:02]} Kg8 {[%emt 0:00:02]} 25. gxf8=Q+ {[%emt 0:00:17]} Kxf8 {[%emt 0:00:05]} 26. Bc4 {[%emt 0:04:25]} Ke7 {[%emt 0:01:16]} 27. Re1+ {[%emt 0:05:31]} Kd6 {[%emt 0:01:34]} 28. Re6+ {[%emt 0:01:25]} Kc5 {[%emt 0:03:42]} 29. Re7 {[%emt 0:00:15]} Kd6 {[%emt 0:04:48]} 30. Rf7 {[%emt 0:00:10]} Rh8 {[%emt 0:00:48]} 31. Kc1 {[%emt 0:00:24]} Rh4 {[%emt 0:00:39]} 32. b3 {[%emt 0:00:36]} a6 {[%emt 0:02:07]} 33. a4 {[%emt 0:00:25]} Rh5 {[%emt 0:02:23]} 34. Kd2 {[%emt 0:02:26]} Bd5 {[%emt 0:03:30]} 35. Bxd5 {[%emt 0:00:32]} Rxd5+ {[%emt 0:00:05]} 36. Ke2 {[%emt 0:01:52]} Rc5 {[%emt 0:00:22]} 37. Kd3 {[%emt 0:01:27]} Rd5+ {[%emt 0:00:09]} 38. Kc3 {[%emt 0:00:12]} Rc5+ {[%emt 0:00:08]} 39. Kb2 {[%emt 0:00:12]} a5 {[%emt 0:01:24]} 40. c3 {[%emt 0:01:01]} Re5 {[%emt 0:01:13]} 41. Kc2 {[%emt 0:01:15]} Re2+ {[%emt 0:01:09]} 42. Kd3 {[%emt 0:00:07]} Rb2 {[%emt 0:00:06]} 43. Kc4 {[%emt 0:00:12]} Kc6 {[%emt 0:02:31]} 44. f4 {[%emt 0:01:54]} Kd6 {[%emt 0:01:19]} 45. f5 {[%emt 0:02:50]} Rf2 {[%emt 0:00:35]} 46. Kd4 {[%emt 0:04:20]} Rf4+ {[%emt 0:00:17]} 47. Ke3 {[%emt 0:00:22]} Rf1 {[%emt 0:00:06]} 48. Ke4 {[%emt 0:03:09]} Rb1 {[%emt 0:01:55]} 49. f6 {[%emt 0:00:50]} Rxb3 {[%emt 0:01:02]} 50. Rxc7 {[%emt 0:00:42]} Rb1 {[%emt 0:01:28]} 51. Rb7 {[%emt 0:01:39]} Kc6 {[%emt 0:01:28]} 52. Rb8 {[%emt 0:00:19]} Rf1 {[%emt 0:01:22]} 53. Ke5 {[%emt 0:00:11]} Kc7 {[%emt 0:00:46]} 54. Rg8 {[%emt 0:00:58]} Kd7 {[%emt 0:01:43]} 55. Ra8 {[%emt 0:01:16]} Rf2 {[%emt 0:03:09]} 56. f7 {[%emt 0:00:53]} Rxf7 {[%emt 0:04:44]} 57. Ra7+ {[%emt 0:00:04]} Ke8 {[%emt 0:00:04]} 58. Rxf7 {[%emt 0:00:04]} Kxf7 {[%emt 0:00:02]} 59. Kd5 {[%emt 0:00:39]} 1-0

[Event "Charlotte Spring IM-B 2024"]
[Site "Charlotte"]
[Date "2024.03.31"]
[Round "7.5"]
[White "Narayanan, Samrug"]
[Black "Castillo Coca, Mairebis"]
[Result "1-0"]
[ECO "B30"]
[WhiteElo "2343"]
[BlackElo "2043"]
[Annotator "RC"]
[PlyCount "71"]
[EventDate "2024.03.27"]
[EventType "tourn"]
[EventCountry "USA"]
[SourceTitle "playchess.com"]
[Source "ChessBase"]
[SourceQuality "1"]
[TimeControl "5400+30"]

1. e4 {[%emt 0:01:45]} c5 {[%emt 0:00:07]} 2. Nf3 {[%emt 0:00:04]} Nc6 {[%emt 0:00:19]} 3. Bb5 {[%emt 0:00:05]} Nd4 {[%emt 0:00:36]} 4. Nxd4 {[%emt 0:00:05]} cxd4 {[%emt 0:00:01]} 5. O-O {[%emt 0:00:08]} a6 {[%emt 0:00:37]} 6. Ba4 {[%emt 0:00:37]} e6 {[%emt 0:02:24]} 7. c3 {[%emt 0:00:29]} Bc5 {[%emt 0:05:43]} 8. cxd4 {[%emt 0:01:20]} Bxd4 {[%emt 0:00:03]} 9. Nc3 {[%emt 0:02:07]} b5 {[%emt 0:03:12]} 10. Bc2 {[%emt 0:00:35]} g6 {[%emt 0:00:57]} 11. Ne2 {[%emt 0:00:15]} Bg7 {[%emt 0:00:02]} 12. d4 {[%emt 0:00:07]} d6 {[%emt 0:00:17]} 13. a4 {[%emt 0:04:17]} Bb7 {[%emt 0:01:39]} 14. Bd3 {[%emt 0:03:30]} b4 {[%emt 0:02:22]} 15. a5 {[%emt 0:03:20]} Nf6 {[%emt 0:00:37]} 16. f3 {[%emt 0:01:40]} Rb8 {[%emt 0:06:06]} 17. Bd2 {[%emt 0:00:52]} O-O {[%emt 0:00:09]} 18. Ra4 {[%emt 0:00:25]} b3 {[%emt 0:00:26]} 19. Rb4 {[%emt 0:00:29]} Bc6 {[%emt 0:02:14]} 20. Qxb3 {[%emt 0:01:05]} Rxb4 {[%emt 0:12:40]} 21. Qxb4 {[%emt 0:00:39]} Qb8 {[%emt 0:00:10]} 22. Qxb8 {[%emt 0:03:52]} Rxb8 {[%emt 0:00:01]} 23. b4 {[%emt 0:00:58]} Bb7 {[%emt 0:05:09]} 24. Rb1 {[%emt 0:01:21]} Rc8 {[%emt 0:00:45]} 25. b5 {[%emt 0:01:09]} axb5 {[%emt 0:00:06]} 26. Bxb5 {[%emt 0:01:21]} Ra8 {[%emt 0:02:52]} 27. Ra1 {[%emt 0:08:48]} Ba6 {[%emt 0:02:54]} 28. Bxa6 {[%emt 0:00:06]} Rxa6 {[%emt 0:00:01]} 29. Rb1 {[%emt 0:00:30]} Kf8 {[%emt 0:01:27]} 30. Rb6 {[%emt 0:02:11]} Ra8 {[%emt 0:03:35]} 31. Rxd6 {[%emt 0:00:18]} Ke8 {[%emt 0:00:11]} 32. Nc1 {[%emt 0:05:35]} Nd7 {[%emt 0:01:48]} 33. Nd3 {[%emt 0:01:50]} Bf8 {[%emt 0:01:27]} 34. Rc6 {[%emt 0:00:06]} Kd8 {[%emt 0:00:15]} 35. a6 {[%emt 0:00:54]} Bg7 {[%emt 0:01:08]} 36. e5 {[%emt 0:00:41]} 1-0

[Event "Charlotte Spring IM-B 2024"]
[Site "Charlotte"]
[Date "2024.03.31"]
[Round "8.2"]
[White "Bregadze, Levan"]
[Black "Narayanan, Samrug"]
[Result "1/2-1/2"]
[ECO "D31"]
[WhiteElo "2435"]
[BlackElo "2343"]
[Annotator "TA"]
[PlyCount "79"]
[EventDate "2024.03.27"]
[EventType "tourn"]
[EventCountry "USA"]
[SourceTitle "playchess.com"]
[Source "ChessBase"]
[SourceQuality "1"]
[TimeControl "5400+30"]

{[%evp 30,79,21,22,13,0,12,0,-27,-27,0,-48,-14,-67,1,-112,-112,-48,-64,-108,-35,-29,-33,-9,0,0,72,5,222,0,0,0,0,0,7,14,9,15,10,4,8,1,14,13,38,8,19,17,24,0,0,0]} 1. d4 {[%emt 0:00:04]} d5 {[%emt 0:00:05]} 2. c4 {[%emt 0:00:11]} e6 {[%emt 0:00:04]} 3. Nc3 {[%emt 0:00:07]} Be7 {[%emt 0:00:04]} 4. cxd5 {[%emt 0:00:14]} exd5 {[%emt 0:00:03]} 5. Bf4 {[%emt 0:00:03]} c6 {[%emt 0:00:06]} 6. e3 {[%emt 0:00:05]} Bf5 {[%emt 0:00:05]} 7. g4 {[%emt 0:00:05]} Be6 {[%emt 0:00:05]} 8. h4 {[%emt 0:00:17]} Bxh4 {[%emt 0:02:10] D31: Queen's Gambit Declined: Semi-Slav without ...Nf6 (+ Marshall Gambit and Noteboom) and Exchange Variation lines without ...Nf6.} 9. Qb3 {[%emt 0:01:51]} g5 {[%emt 0:00:07]} 10. Bh2 {[%emt 0:00:30]} Qb6 {[%emt 0:09:21]} 11. Nf3 {[%emt 0:01:36]} Nd7 $146 {[%emt 1:23:50]} ({Predecessor:} 11... Bxg4 12. Nxh4 Qxb3 13. axb3 gxh4 14. Be5 f6 15. Bxb8 Rxb8 16. Rxh4 h5 17. Rxa7 Ne7 {½-½ Tabatabaei,M (2345)-Aghasaryan,R (2502) Jermuk Asrian Memorial 7th 2014 (3)}) 12. Qc2 {[%emt 0:07:53]} Bxg4 {[%emt 0:00:00]} 13. Nxh4 {[%emt 0:00:15]} gxh4 {[%emt 0:00:00]} 14. Be2 {[%emt 0:07:07]} Bxe2 {[%emt 0:00:00]} 15. Qxe2 {[%emt 0:00:34]} Ngf6 {[%emt 0:00:00]} 16. O-O-O {[%emt 0:00:14]} Qb4 {[%emt 0:00:00]} 17. Kb1 {[%emt 0:06:21]} Qe7 {[%emt 0:00:00]} 18. Ka1 {[%emt 0:00:30]} Rg8 {[%emt 0:00:00]} 19. e4 {[%emt 0:09:57]} Nf8 {[%emt 0:00:00]} (19... Nxe4 $6 20. Rde1 $14) 20. Rhe1 {[%emt 0:02:50]} (20. Qc2 $11 {might be stronger.} Nxe4 21. Nxe4 dxe4 (21... Qxe4 $2 22. Rde1 $18) 22. d5) 20... O-O-O $1 $15 {[%emt 0:00:00]} 21. Nb5 {[%emt 0:33:07]} ({White should try} 21. f3 $11) 21... Ne6 {[%emt 0:00:00]} (21... cxb5 22. Rc1+ Kd7 23. Qxb5+ Ke6 24. exd5+ Kf5 25. d6+ (25. Rxe7 Rg3 $18) 25... Kg6 26. Rg1+ (26. Rxe7 Kh6 $18) (26. dxe7 Kg7 27. exd8=Q Ng6 28. Qd6 h6 29. Be5 Kh7 30. Qxf6 h5 31. Qe2 Nf4 32. Qxf7+ Kh6 33. Bxf4+ Rg5 34. Qexh5#) (26. Rxe7 Ne6 $18) (26. dxe7 Rxd4 27. Rg1+ Ng4 28. e8=Q h5 29. Qbe5 Kh6 30. Qxd4 h3 31. Qxf7 Nh7 32. Bf4+ Ng5 33. Bxg5+ Rxg5 34. Qh8#)) (21... Qxe4 $2 22. Qd2 Qg4 23. Nxa7+ Kd7 24. Qb4 $18) (21... Nxe4 22. f3 (22. Nxa7+ Kd7 $18) 22... f5 23. fxe4 (23. Nxa7+ Kd7 $14) 23... fxe4 24. Rg1 $16 (24. Nxa7+ Kd7 $14)) (21... dxe4 22. Nxa7+ Kd7 23. d5 Nxd5 (23... cxd5 24. Rxd5+ Nxd5 25. Qb5+ Ke6 26. Rxe4+ Kf6 27. Rxe7 $18) 24. Rxd5+ cxd5 25. Qb5+ Ke6 26. Rxe4+ dxe4 27. Qe5+ Kd7 28. Qb5+ Ke6 29. Qe5+ Kd7 30. Qb5+ Ke6 $11) (21... a6 $1 $15 22. Qf3 Nxe4 (22... cxb5 23. Rc1+ Kd7 24. Rc7+ Ke8 25. Rxe7+ Kxe7 26. exd5+ Ne6 27. dxe6 fxe6 28. Qf5) (22... axb5 23. exd5 Ne6 24. d6 $16) 23. Na7+ Kd7) 22. Nxa7+ {[%emt 0:13:35]} (22. exd5 $1 $11 Rxd5 (22... Nxd5 23. Qe5 $11) 23. Nc3) 22... Kd7 $17 {[%emt 0:00:00]} 23. exd5 {[%emt 0:02:04]} Nxd5 {[%emt 0:00:00]} 24. Nb5 $1 {[%emt 0:00:13]} Ke8 {[%emt 0:00:00]} (24... cxb5 $2 {loses.} 25. Qxb5+ Kc8 26. Rc1+ Ndc7 27. Qa5 $18 (27. Bxc7 Qxc7 28. Rxc7+ Nxc7 $18) (27. Bxc7 Qxc7 28. Rxc7+ Nxc7 $18)) (24... Rg2 $1 $17 {[%cal Rg2h2]} 25. Be5 f6 (25... cxb5 $2 26. Qxb5+ Kc8 27. Rc1+ Nec7 28. Bxc7 $18)) 25. Nc3 $15 {[%emt 0:00:46]} Nxc3 {[%emt 0:00:00]} 26. bxc3 {[%emt 0:00:02]} Rg6 {[%emt 0:00:00]} 27. Be5 {[%emt 0:00:26]} Qg5 {[%emt 0:00:00]} (27... Qa3 $11 28. Qc2 Kf8) 28. Qb2 {[%emt 0:03:05]} (28. c4 $16) 28... Rd7 $2 {[%emt 0:00:00] [#]} (28... Kf8 $11) 29. c4 $2 {[%emt 0:01:25]} (29. f4 $1 $18 {[%cal Rf4g5]} Qh5 30. d5) 29... f6 $11 {[%emt 0:00:00]} 30. Bb8 {[%emt 0:01:06]} Kf7 $1 {[%emt 0:00:00]} 31. d5 $1 {[%emt 0:00:01]} cxd5 {[%emt 0:00:00]} 32. Rxd5 {[%emt 0:00:14]} Rxd5 {[%emt 0:00:00]} 33. Qxb7+ {[%emt 0:00:04]} Kg8 {[%emt 0:00:00]} 34. Qxd5 {[%emt 0:01:01]} ({But not} 34. cxd5 Qd2 35. Qc8+ Nf8 $17) 34... Qxd5 {[%emt 0:00:00]} 35. cxd5 {[%emt 0:00:03]} Nf8 {[%emt 0:00:00]} 36. Bc7 {[%emt 0:03:31]} h3 {[%emt 0:00:00]} 37. Bg3 {[%emt 0:00:45]} Rg4 {[%emt 0:00:00]} 38. Rh1 {[%emt 0:00:09]} Rd4 {[%emt 0:00:00]} 39. d6 {[%emt 0:01:55]} f5 {[%emt 0:00:00]} 40. Rxh3 {[%emt 0:01:12]} 1/2-1/2

[Event "Charlotte Spring IM-B 2024"]
[Site "Charlotte"]
[Date "2024.03.31"]
[Round "8.3"]
[White "Lima, Darcy"]
[Black "Becerra Rivero, Julio"]
[Result "1/2-1/2"]
[ECO "C95"]
[WhiteElo "2364"]
[BlackElo "2411"]
[Annotator "TA"]
[PlyCount "22"]
[EventDate "2024.03.27"]
[EventType "tourn"]
[EventCountry "USA"]
[SourceTitle "playchess.com"]
[Source "ChessBase"]
[SourceQuality "1"]
[TimeControl "5400+30"]

{[%evp 17,22,28,31,30,31,32,35]} 1. e4 {[%emt 0:00:01]} e5 {[%emt 0:00:04]} 2. Nf3 {[%emt 0:00:06]} Nc6 {[%emt 0:00:04]} 3. Bb5 {[%emt 0:00:04][%cal Bf1b5,Bb5a4,Ba4b3][%mdl 32]} a6 {[%emt 0:00:05]} 4. Ba4 {[%emt 0:00:04]} Nf6 {[%emt 0:00:05]} 5. O-O {[%emt 0:00:06]} Be7 {[%emt 0:00:03]} 6. Re1 {[%emt 0:00:08]} b5 {[%emt 0:00:03]} 7. Bb3 {[%emt 0:00:06]} d6 {[%emt 0:00:02]} 8. c3 {[%emt 0:00:12]} O-O {[%emt 0:00:06]} 9. h3 {[%emt 0:00:02]} Nb8 {[%emt 0:00:05]} 10. d4 {[%emt 0:00:07]} Nbd7 {[%emt 0:00:04]} 11. Nbd2 {[%emt 0:00:07]} Bb7 {[%emt 0:00:43] Weighted Error Value: White=0.00 (flawless) /Black=0.01 (flawless) .  OK:         	White=1     	Black=1} 1/2-1/2

[Event "Charlotte Spring IM-B 2024"]
[Site "Charlotte"]
[Date "2024.03.31"]
[Round "8.4"]
[White "Tang, Benjamin"]
[Black "Nandhakumar, Vaseegaran"]
[Result "0-1"]
[ECO "B48"]
[WhiteElo "2324"]
[BlackElo "2251"]
[Annotator "ChessBase"]
[PlyCount "80"]
[EventDate "2024.03.27"]
[EventType "tourn"]
[EventCountry "USA"]
[SourceTitle "playchess.com"]
[Source "ChessBase"]
[SourceQuality "1"]
[TimeControl "5400+30"]

1. e4 {[%emt 0:06:41]} c5 {[%emt 0:00:17]} 2. Nf3 {[%emt 0:00:18]} e6 {[%emt 0:00:08]} 3. d4 {[%emt 0:00:03]} cxd4 {[%emt 0:00:06]} 4. Nxd4 {[%emt 0:00:03]} Nc6 {[%emt 0:00:12]} 5. Nc3 {[%emt 0:00:11]} Qc7 {[%emt 0:00:02]} 6. Be3 {[%emt 0:03:06]} a6 {[%emt 0:00:52]} 7. Qd2 {[%emt 0:03:11]} Nf6 {[%emt 1:32:23]} 8. f4 {[%emt 0:00:04]} Bb4 {[%emt 0:00:00]} 9. Bd3 {[%emt 0:00:04]} Na5 {[%emt 0:00:00]} 10. a3 {[%emt 0:02:11]} Bxc3 {[%emt 0:00:00]} 11. Qxc3 {[%emt 0:00:01]} Qxc3+ {[%emt 0:00:00]} 12. bxc3 {[%emt 0:00:01]} d5 {[%emt 0:00:00]} 13. exd5 {[%emt 0:08:00]} exd5 {[%emt 0:00:00]} 14. Nb3 {[%emt 0:05:29]} Nc4 {[%emt 0:00:00]} 15. Bd4 {[%emt 0:01:16]} Ne4 {[%emt 0:00:00]} 16. O-O {[%emt 0:08:56]} O-O {[%emt 0:00:00]} 17. Rfe1 {[%emt 0:01:38]} Ncd6 {[%emt 0:00:00]} 18. Nc5 {[%emt 0:07:39]} Bf5 {[%emt 0:00:00]} 19. Rab1 {[%emt 0:05:22]} b5 {[%emt 0:00:00]} 20. a4 {[%emt 0:02:42]} Rfc8 {[%emt 0:00:00]} 21. Nxe4 {[%emt 0:09:26]} dxe4 {[%emt 0:00:00]} 22. Bf1 {[%emt 0:00:05]} bxa4 {[%emt 0:00:00]} 23. Ra1 {[%emt 0:01:11]} Bd7 {[%emt 0:00:00]} 24. Rad1 {[%emt 0:08:10]} Bb5 {[%emt 0:00:00]} 25. Be5 {[%emt 0:01:04]} Nc4 {[%emt 0:00:00]} 26. Rxe4 {[%emt 0:03:03]} a3 {[%emt 0:00:00]} 27. Bd4 {[%emt 0:06:48]} a2 {[%emt 0:00:00]} 28. f5 {[%emt 0:04:17]} Nd2 {[%emt 0:00:00]} 29. Rg4 {[%emt 0:00:49]} Bxf1 {[%emt 0:00:00]} 30. Rxg7+ {[%emt 0:01:03]} Kf8 {[%emt 0:00:00]} 31. Rxh7 {[%emt 0:01:53]} Ke7 {[%emt 0:00:00]} 32. c4 {[%emt 0:01:20]} Rxc4 {[%emt 0:00:00]} 33. Re1+ {[%emt 0:01:57]} Kd6 {[%emt 0:00:00]} 34. Rh6+ {[%emt 0:00:06]} Kd7 {[%emt 0:00:00]} 35. Bf6 {[%emt 0:01:04]} Re4 {[%emt 0:00:00]} 36. Rd1 {[%emt 0:00:38]} Re2 {[%emt 0:00:00]} 37. Rh4 {[%emt 0:02:13]} Rxg2+ {[%emt 0:00:00]} 38. Kh1 {[%emt 0:07:27]} Rag8 {[%emt 0:00:00]} 39. Bd4 {[%emt 0:00:00]} Kc8 {[%emt 0:00:00]} 40. Rf4 {[%emt 0:01:00]} Be2 0-1

[Event "Charlotte Spring IM-B 2024"]
[Site "Charlotte"]
[Date "2024.03.31"]
[Round "8.5"]
[White "Jiang, Andrew"]
[Black "Chirilov, James A"]
[Result "1/2-1/2"]
[ECO "B22"]
[WhiteElo "2181"]
[BlackElo "2082"]
[Annotator "ChessBase"]
[PlyCount "83"]
[EventDate "2024.03.27"]
[EventType "tourn"]
[EventCountry "USA"]
[SourceTitle "playchess.com"]
[Source "ChessBase"]
[SourceQuality "1"]
[TimeControl "5400+30"]

1. e4 {[%emt 0:00:04]} c5 {[%emt 0:01:30]} 2. c3 {[%emt 0:00:12]} Nf6 {[%emt 0:00:24]} 3. e5 {[%emt 0:00:09]} Nd5 {[%emt 0:00:08]} 4. Nf3 {[%emt 0:00:09]} d6 {[%emt 0:00:09]} 5. Bb5+ {[%emt 0:00:06]} Bd7 {[%emt 0:00:17]} 6. Bc4 {[%emt 0:00:02]} e6 {[%emt 0:00:33]} 7. d4 {[%emt 0:00:08]} cxd4 {[%emt 0:00:47]} 8. Bxd5 {[%emt 0:00:03]} exd5 {[%emt 0:00:09]} 9. O-O {[%emt 0:00:11]} Nc6 {[%emt 0:00:17]} 10. Re1 {[%emt 0:00:12]} Be6 {[%emt 0:11:26]} 11. exd6 {[%emt 0:09:55]} Bxd6 {[%emt 0:03:55]} 12. Nxd4 {[%emt 0:00:04]} O-O {[%emt 0:05:49]} 13. Be3 {[%emt 0:21:43]} Qh4 {[%emt 0:09:49]} 14. Nf3 {[%emt 0:00:12]} Qh5 {[%emt 0:01:05]} 15. Nbd2 {[%emt 0:00:10]} Rad8 {[%emt 0:11:43]} 16. Qa4 {[%emt 0:18:54]} Bg4 {[%emt 0:11:25]} 17. h3 {[%emt 0:02:46]} Bd7 {[%emt 0:11:26]} 18. Qh4 {[%emt 0:02:13]} Qg6 {[%emt 0:00:34]} 19. Nb3 {[%emt 0:02:09]} Rfe8 {[%emt 0:02:15]} 20. Qg5 {[%emt 0:00:55]} Qc2 {[%emt 0:02:49]} 21. Rab1 {[%emt 0:00:22]} h6 {[%emt 0:01:54]} 22. Qh5 {[%emt 0:00:39]} a5 {[%emt 0:05:07]} 23. Bb6 {[%emt 0:01:00]} Rxe1+ {[%emt 0:05:56]} 24. Rxe1 {[%emt 0:00:03]} Re8 {[%emt 0:01:02]} 25. Qxd5 {[%emt 0:00:34]} Rxe1+ {[%emt 0:02:01]} 26. Nxe1 {[%emt 0:00:02]} Qb1 {[%emt 0:01:02]} 27. Qxd6 {[%emt 0:00:49]} Qxe1+ {[%emt 0:00:03]} 28. Kh2 {[%emt 0:00:01]} Be6 {[%emt 0:00:38]} 29. Nc5 {[%emt 0:01:17]} Bxa2 {[%emt 0:04:04]} 30. Nxb7 {[%emt 0:00:25]} Ne7 {[%emt 0:00:40]} 31. Nxa5 {[%emt 0:00:58]} Nf5 {[%emt 0:00:47]} 32. Qf4 {[%emt 0:01:09]} Qe6 {[%emt 0:01:10]} 33. Bc5 {[%emt 0:00:09]} g5 {[%emt 0:00:42]} 34. Qb8+ {[%emt 0:00:43]} Kh7 {[%emt 0:00:10]} 35. b4 {[%emt 0:01:06]} Bd5 {[%emt 0:00:35]} 36. c4 {[%emt 0:13:07]} Bxg2 {[%emt 0:03:37]} 37. Kxg2 {[%emt 0:00:28]} Qe4+ {[%emt 0:00:58]} 38. Kg1 {[%emt 0:04:53]} Nh4 {[%emt 0:00:36]} 39. Qg3 {[%emt 0:00:45]} Nf3+ {[%emt 0:00:53]} 40. Kh1 {[%emt 0:00:21]} Qe2 {[%emt 0:01:27]} 41. Kg2 {[%emt 0:02:06]} Ne1+ {[%emt 0:00:12]} 42. Kh1 {[%emt 0:00:28]} 1/2-1/2